[Event "Chessable Masters - Torneo preliminare"]
[White "Sattarov, Bobir"]
[Black "Cuenca Jimenez, Jose Fernando"]
[WhiteFideId "14203081"]
[BlackFideId "2255570"]
[WhiteElo "2333"]
[BlackElo "2455"]
[Result "0-1"]
[Round "6"]
[TimeControl "600+2"]
[Date "2023.03.13"]
[WhiteClock "0:03:07"]
[BlackClock "0:00:13"]

1. e4 {[%clk 0:10:01]}  c5 {[%clk 0:09:55]} 2. Nf3 {[%clk 0:10:02]}  Nc6 {[%clk 0:09:56]} 3. d4 {[%clk 0:10:02]}  cxd4 {[%clk 0:09:58]} 4. Nxd4 {[%clk 0:10:03]}  e5 {[%clk 0:09:59]} 5. Nb5 {[%clk 0:10:04]}  d6 {[%clk 0:10:01]} 6. a4 {[%clk 0:10:03]}  Be7 {[%clk 0:09:49]} 7. N1c3 {[%clk 0:10:03]}  a6 {[%clk 0:09:50]} 8. Na3 {[%clk 0:10:03]}  h6 {[%clk 0:07:52]} 9. Nc4 {[%clk 0:09:51]}  Be6 {[%clk 0:07:52]} 10. Nd5 {[%clk 0:09:49]}  Bxd5 {[%clk 0:07:33]} 11. exd5 {[%clk 0:09:51]}  Nb8 {[%clk 0:07:18]} 12. Be3 {[%clk 0:09:50]}  Nd7 {[%clk 0:07:17]} 13. a5 {[%clk 0:09:50]}  Qc7 {[%clk 0:06:13]} 14. Be2 {[%clk 0:09:46]}  Rb8 {[%clk 0:05:40]} 15. O-O {[%clk 0:09:45]}  Bg5 {[%clk 0:05:36]} 16. Qd2 {[%clk 0:07:42]}  Bxe3 {[%clk 0:05:30]} 17. Nxe3 {[%clk 0:07:44]}  Ne7 {[%clk 0:05:26]} 18. b4 {[%clk 0:07:38]}  O-O {[%clk 0:05:25]} 19. c4 {[%clk 0:07:38]}  f5 {[%clk 0:04:48]} 20. f3 {[%clk 0:07:31]}  f4 {[%clk 0:04:18]} 21. Nc2 {[%clk 0:07:30]}  Nf6 {[%clk 0:04:08]} 22. Bd3 {[%clk 0:07:29]}  g5 {[%clk 0:04:06]} 23. Kh1 {[%clk 0:07:25]}  Kg7 {[%clk 0:03:57]} 24. Rac1 {[%clk 0:06:58]}  Rbc8 {[%clk 0:03:56]} 25. Na3 {[%clk 0:06:56]}  Qd7 {[%clk 0:03:54]} 26. Be4 {[%clk 0:06:25]}  Rfd8 {[%clk 0:02:40]} 27. Rfd1 {[%clk 0:06:19]}  Nf5 {[%clk 0:02:38]} 28. c5 {[%clk 0:06:17]}  dxc5 {[%clk 0:02:17]} 29. bxc5 {[%clk 0:06:19]}  Ne3 {[%clk 0:02:14]} 30. Nc4 {[%clk 0:05:50]}  Nxd1 {[%clk 0:01:48]} 31. Nd6 {[%clk 0:05:23]}  Ne3 {[%clk 0:01:34]} 32. Nxc8 {[%clk 0:04:54]}  Rxc8 {[%clk 0:01:32]} 33. d6 {[%clk 0:04:52]}  Nxe4 {[%clk 0:01:04]} 34. fxe4 {[%clk 0:04:54]}  Qc6 {[%clk 0:01:02]} 35. Qb4 {[%clk 0:04:15]}  Qxd6 {[%clk 0:00:56]} 36. Qxb7+ {[%clk 0:04:14]}  Qc7 {[%clk 0:00:37]} 37. Qxa6 {[%clk 0:04:15]}  Qc6 {[%clk 0:00:25]} 38. Qd3 {[%clk 0:04:02]}  Rc7 {[%clk 0:00:19]} 39. h3 {[%clk 0:04:00]}  g4 {[%clk 0:00:19]} 40. hxg4 {[%clk 0:03:55]}  Nxg4 {[%clk 0:00:21]} 41. Kg1 {[%clk 0:03:31]}  Nf6 {[%clk 0:00:21]} 42. Rc4 {[%clk 0:03:29]}  Qb5 {[%clk 0:00:18]} 43. Qd6 {[%clk 0:03:27]}  Rd7 {[%clk 0:00:16]} 44. Qe6 {[%clk 0:03:27]}  Qb1+ {[%clk 0:00:15]} 45. Kh2 {[%clk 0:03:28]}  Qe1 {[%clk 0:00:07]} 46. Qxd7+ {[%clk 0:03:10]}  Nxd7 {[%clk 0:00:08]} 47. c6 {[%clk 0:03:12]}  Qh4+ {[%clk 0:00:07]} 48. Kg1 {[%clk 0:03:13]}  Qe1+ {[%clk 0:00:08]} 49. Kh2 {[%clk 0:03:14]}  Qxa5 {[%clk 0:00:07]} 50. cxd7 {[%clk 0:02:59]}  Qd8 {[%clk 0:00:07]} 51. Rc5 {[%clk 0:03:00]}  Qxd7 {[%clk 0:00:08]} 52. Rxe5 {[%clk 0:03:01]}  Qg4 {[%clk 0:00:08]} 53. Rf5 {[%clk 0:02:59]}  Kg6 {[%clk 0:00:06]} 54. Kg1 {[%clk 0:03:00]}  Qg3 {[%clk 0:00:08]} 55. Kf1 {[%clk 0:03:00]}  Qd3+ {[%clk 0:00:08]} 56. Kg1 {[%clk 0:03:01]}  Qxe4 {[%clk 0:00:09]} 57. Rb5 {[%clk 0:03:02]}  Qe3+ {[%clk 0:00:10]} 58. Kh2 {[%clk 0:03:03]}  Qg3+ {[%clk 0:00:11]} 59. Kg1 {[%clk 0:03:04]}  f3 {[%clk 0:00:11]} 60. Rb6+ {[%clk 0:03:05]}  Kf7 {[%clk 0:00:11]} 61. Rb7+ {[%clk 0:03:06]}  Ke6 {[%clk 0:00:12]} 62. Rb2 {[%clk 0:03:06]}  Qe1+ {[%clk 0:00:11]} 63. Kh2 {[%clk 0:03:07]}  Qe5+ {[%clk 0:00:13]} 0-1


[Site "Internet"]

[Event "Chessable Masters - Torneo preliminare"]
[White "Xu, Yi"]
[Black "Huschenbeth, Niclas"]
[WhiteFideId "8605564"]
[BlackFideId "24604747"]
[WhiteElo "2402"]
[BlackElo "2566"]
[Result "0-1"]
[Round "6"]
[TimeControl "600+2"]
[Date "2023.03.13"]
[WhiteClock "0:00:06"]
[BlackClock "0:00:08"]

1. e4 {[%clk 0:10:01]}  c5 {[%clk 0:10:00]} 2. Nf3 {[%clk 0:10:02]}  d6 {[%clk 0:10:01]} 3. Bb5+ {[%clk 0:10:02]}  Nd7 {[%clk 0:10:01]} 4. d4 {[%clk 0:10:03]}  cxd4 {[%clk 0:10:02]} 5. Nxd4 {[%clk 0:10:03]}  Nf6 {[%clk 0:09:56]} 6. O-O {[%clk 0:10:04]}  a6 {[%clk 0:09:53]} 7. Bd3 {[%clk 0:10:04]}  e5 {[%clk 0:09:49]} 8. Nb3 {[%clk 0:09:30]}  b5 {[%clk 0:09:45]} 9. a4 {[%clk 0:09:17]}  b4 {[%clk 0:09:40]} 10. c3 {[%clk 0:08:35]}  Bb7 {[%clk 0:09:39]} 11. Qe2 {[%clk 0:08:27]}  d5 {[%clk 0:08:56]} 12. exd5 {[%clk 0:08:14]}  Bxd5 {[%clk 0:08:56]} 13. N1d2 {[%clk 0:08:03]}  bxc3 {[%clk 0:08:49]} 14. bxc3 {[%clk 0:08:04]}  Be7 {[%clk 0:08:44]} 15. Bxa6 {[%clk 0:07:58]}  Qc7 {[%clk 0:07:56]} 16. Ba3 {[%clk 0:06:14]}  Bxa3 {[%clk 0:07:22]} 17. Rxa3 {[%clk 0:06:15]}  Bxg2 {[%clk 0:07:23]} 18. Kxg2 {[%clk 0:06:02]}  Qc6+ {[%clk 0:07:24]} 19. Nf3 {[%clk 0:05:40]}  Rxa6 {[%clk 0:07:02]} 20. Nd4 {[%clk 0:05:35]}  Qa8 {[%clk 0:06:40]} 21. Nb5 {[%clk 0:05:29]}  Nd5 {[%clk 0:06:28]} 22. Kh1 {[%clk 0:04:31]}  O-O {[%clk 0:06:27]} 23. c4 {[%clk 0:03:48]}  Nf4 {[%clk 0:06:21]} 24. Qd1 {[%clk 0:03:49]}  Qb7 {[%clk 0:05:15]} 25. Rg1 {[%clk 0:03:38]}  e4 {[%clk 0:04:25]} 26. Nfd4 {[%clk 0:02:53]}  Nd3 {[%clk 0:04:19]} 27. Rg2 {[%clk 0:01:55]}  Rf6 {[%clk 0:03:34]} 28. Qg1 {[%clk 0:01:55]}  g6 {[%clk 0:03:33]} 29. Ra2 {[%clk 0:01:41]}  N7e5 {[%clk 0:03:16]} 30. a5 {[%clk 0:01:35]}  Nxc4 {[%clk 0:02:59]} 31. Qa1 {[%clk 0:01:12]}  Ra8 {[%clk 0:02:04]} 32. Kg1 {[%clk 0:00:59]}  e3 {[%clk 0:01:54]} 33. fxe3 {[%clk 0:00:44]}  Nxe3 {[%clk 0:01:46]} 34. Rg3 {[%clk 0:00:36]}  Qe4 {[%clk 0:01:22]} 35. Re2 {[%clk 0:00:28]}  Rxa5 {[%clk 0:01:08]} 36. Qb1 {[%clk 0:00:19]}  Nf4 {[%clk 0:00:16]} 37. Qxe4 {[%clk 0:00:06]}  Nh3+ {[%clk 0:00:08]} 0-1


[Site "Internet"]

[Event "Chessable Masters - Torneo preliminare"]
[White "Larino Nieto, David"]
[Black "Shyam, Sundar M."]
[WhiteFideId "2256444"]
[BlackFideId "5019141"]
[WhiteElo "2496"]
[BlackElo "2464"]
[Result "1-0"]
[Round "6"]
[TimeControl "600+2"]
[Date "2023.03.13"]
[WhiteClock "0:05:13"]
[BlackClock "0:02:37"]

1. e4 {[%clk 0:09:58]}  c6 {[%clk 0:09:59]} 2. d4 {[%clk 0:09:55]}  d5 {[%clk 0:10:00]} 3. Nd2 {[%clk 0:09:57]}  dxe4 {[%clk 0:10:01]} 4. Nxe4 {[%clk 0:09:59]}  Nf6 {[%clk 0:10:03]} 5. Ng3 {[%clk 0:10:00]}  g6 {[%clk 0:09:56]} 6. Nf3 {[%clk 0:09:57]}  Bg7 {[%clk 0:09:57]} 7. Be2 {[%clk 0:09:57]}  O-O {[%clk 0:09:55]} 8. h4 {[%clk 0:09:59]}  Bg4 {[%clk 0:09:51]} 9. c3 {[%clk 0:09:52]}  Nbd7 {[%clk 0:09:43]} 10. h5 {[%clk 0:09:32]}  Nxh5 {[%clk 0:09:38]} 11. Nxh5 {[%clk 0:09:33]}  Bxh5 {[%clk 0:09:40]} 12. Ng5 {[%clk 0:09:27]}  Bxe2 {[%clk 0:09:35]} 13. Qxe2 {[%clk 0:09:29]}  h6 {[%clk 0:09:31]} 14. Ne4 {[%clk 0:09:09]}  h5 {[%clk 0:09:02]} 15. g4 {[%clk 0:08:53]}  hxg4 {[%clk 0:07:45]} 16. Qxg4 {[%clk 0:08:50]}  Nf6 {[%clk 0:07:46]} 17. Qh3 {[%clk 0:08:13]}  Re8 {[%clk 0:07:39]} 18. Be3 {[%clk 0:08:11]}  Qd5 {[%clk 0:07:22]} 19. Nxf6+ {[%clk 0:08:11]}  exf6 {[%clk 0:07:24]} 20. O-O-O {[%clk 0:08:07]}  Re6 {[%clk 0:06:48]} 21. b3 {[%clk 0:07:58]}  Rae8 {[%clk 0:06:31]} 22. c4 {[%clk 0:07:56]}  Qe4 {[%clk 0:06:06]} 23. d5 {[%clk 0:07:30]}  cxd5 {[%clk 0:06:05]} 24. Qh7+ {[%clk 0:07:21]}  Kf8 {[%clk 0:06:06]} 25. Bc5+ {[%clk 0:07:21]}  R6e7 {[%clk 0:06:07]} 26. Rhe1 {[%clk 0:07:13]}  Qf4+ {[%clk 0:05:59]} 27. Rd2 {[%clk 0:06:55]}  dxc4 {[%clk 0:05:45]} 28. Kd1 {[%clk 0:05:16]}  Qf3+ {[%clk 0:05:43]} 29. Ree2 {[%clk 0:05:15]}  c3 {[%clk 0:02:35]} 30. Bxe7+ {[%clk 0:05:12]}  Rxe7 {[%clk 0:02:37]} 31. Rd8+ {[%clk 0:05:13]} 1-0


[Site "Internet"]

[Event "Chessable Masters - Torneo preliminare"]
[White "Kaufman, Lawrence"]
[Black "Iskusnyh, Sergei"]
[WhiteFideId "2000555"]
[BlackFideId "4120027"]
[WhiteElo "2216"]
[BlackElo "2345"]
[Result "0-1"]
[Round "6"]
[TimeControl "600+2"]
[Date "2023.03.13"]
[WhiteClock "0:00:56"]
[BlackClock "0:04:59"]

1. e4 {[%clk 0:10:01]}  e6 {[%clk 0:10:00]} 2. d4 {[%clk 0:10:01]}  d5 {[%clk 0:10:00]} 3. e5 {[%clk 0:10:01]}  c5 {[%clk 0:09:58]} 4. c3 {[%clk 0:10:02]}  Nc6 {[%clk 0:09:59]} 5. Nf3 {[%clk 0:10:00]}  Nge7 {[%clk 0:10:00]} 6. Na3 {[%clk 0:09:47]}  Bd7 {[%clk 0:10:00]} 7. Nc2 {[%clk 0:09:43]}  Qa5 {[%clk 0:10:00]} 8. Bd2 {[%clk 0:09:19]}  Qb6 {[%clk 0:09:58]} 9. b4 {[%clk 0:09:08]}  cxd4 {[%clk 0:09:47]} 10. cxd4 {[%clk 0:09:06]}  Nf5 {[%clk 0:09:42]} 11. a3 {[%clk 0:05:24]}  Ncxd4 {[%clk 0:09:20]} 12. Nfxd4 {[%clk 0:04:51]}  Nxd4 {[%clk 0:09:20]} 13. Bd3 {[%clk 0:03:34]}  Nxc2+ {[%clk 0:07:38]} 14. Bxc2 {[%clk 0:02:51]}  Bb5 {[%clk 0:07:25]} 15. Be3 {[%clk 0:02:47]}  Qc7 {[%clk 0:07:15]} 16. Rc1 {[%clk 0:02:22]}  Qc3+ {[%clk 0:06:03]} 17. Bd2 {[%clk 0:01:29]}  Qxe5+ {[%clk 0:06:01]} 18. Be3 {[%clk 0:01:28]}  Qc3+ {[%clk 0:05:06]} 19. Bd2 {[%clk 0:01:27]}  Qxa3 {[%clk 0:05:07]} 20. Ra1 {[%clk 0:01:12]}  Qb2 {[%clk 0:05:01]} 21. Ra5 {[%clk 0:00:56]}  Qe5+ {[%clk 0:04:59]} 0-1


[Site "Internet"]

[Event "Chessable Masters - Torneo preliminare"]
[White "Le, Quang Liem"]
[Black "Fedoseev, Vladimir"]
[WhiteFideId "12401137"]
[BlackFideId "24130737"]
[WhiteElo "2661"]
[BlackElo "2752"]
[Result "1-0"]
[Round "7"]
[TimeControl "600+2"]
[Date "2023.03.13"]
[WhiteClock "0:02:23"]
[BlackClock "0:00:12"]

1. d4 {[%clk 0:10:01]}  Nf6 {[%clk 0:09:59]} 2. Nf3 {[%clk 0:10:02]}  e6 {[%clk 0:10:00]} 3. c4 {[%clk 0:10:03]}  d5 {[%clk 0:10:00]} 4. g3 {[%clk 0:10:04]}  Bb4+ {[%clk 0:09:59]} 5. Bd2 {[%clk 0:10:04]}  Be7 {[%clk 0:10:00]} 6. Bg2 {[%clk 0:10:06]}  O-O {[%clk 0:10:00]} 7. O-O {[%clk 0:10:06]}  Nbd7 {[%clk 0:09:58]} 8. b4 {[%clk 0:09:52]}  c6 {[%clk 0:09:44]} 9. a4 {[%clk 0:09:52]}  b6 {[%clk 0:09:42]} 10. Qb3 {[%clk 0:09:42]}  a5 {[%clk 0:09:30]} 11. cxd5 {[%clk 0:09:27]}  exd5 {[%clk 0:09:06]} 12. Rc1 {[%clk 0:09:20]}  axb4 {[%clk 0:08:27]} 13. Rxc6 {[%clk 0:09:13]}  Ba6 {[%clk 0:08:11]} 14. Bxb4 {[%clk 0:09:06]}  Bxe2 {[%clk 0:07:19]} 15. Nc3 {[%clk 0:09:01]}  Bc4 {[%clk 0:07:10]} 16. Qa3 {[%clk 0:09:02]}  Bxb4 {[%clk 0:06:04]} 17. Qxb4 {[%clk 0:09:04]}  b5 {[%clk 0:05:17]} 18. Nxb5 {[%clk 0:08:15]}  Nb8 {[%clk 0:05:13]} 19. Rd6 {[%clk 0:07:34]}  Qe7 {[%clk 0:05:04]} 20. Re1 {[%clk 0:07:33]}  Ne4 {[%clk 0:04:49]} 21. Nd2 {[%clk 0:06:28]}  Rxa4 {[%clk 0:02:55]} 22. Qxa4 {[%clk 0:05:28]}  Bxb5 {[%clk 0:02:54]} 23. Bxe4 {[%clk 0:05:05]}  Qxd6 {[%clk 0:02:46]} 24. Qxb5 {[%clk 0:04:51]}  dxe4 {[%clk 0:02:45]} 25. Rxe4 {[%clk 0:04:52]}  Nd7 {[%clk 0:02:06]} 26. Nc4 {[%clk 0:04:32]}  Qg6 {[%clk 0:02:05]} 27. Re1 {[%clk 0:04:31]}  Nf6 {[%clk 0:02:03]} 28. d5 {[%clk 0:04:23]}  Qf5 {[%clk 0:02:01]} 29. Ne3 {[%clk 0:04:21]}  Qe5 {[%clk 0:01:57]} 30. Rd1 {[%clk 0:04:14]}  Rd8 {[%clk 0:01:36]} 31. Qb6 {[%clk 0:04:12]}  Qd6 {[%clk 0:01:08]} 32. Qd4 {[%clk 0:03:32]}  h5 {[%clk 0:01:07]} 33. Nf5 {[%clk 0:03:25]}  Qd7 {[%clk 0:01:04]} 34. Qf4 {[%clk 0:03:26]}  g6 {[%clk 0:00:50]} 35. Ne3 {[%clk 0:03:23]}  Qd6 {[%clk 0:00:50]} 36. Qd4 {[%clk 0:03:18]}  Rc8 {[%clk 0:00:48]} 37. h4 {[%clk 0:03:14]}  Nd7 {[%clk 0:00:47]} 38. Nc4 {[%clk 0:03:06]}  Qb4 {[%clk 0:00:42]} 39. Ne3 {[%clk 0:03:04]}  Qxd4 {[%clk 0:00:35]} 40. Rxd4 {[%clk 0:03:06]}  Kf8 {[%clk 0:00:36]} 41. Nc4 {[%clk 0:02:59]}  Ke7 {[%clk 0:00:30]} 42. Re4+ {[%clk 0:02:58]}  Kf8 {[%clk 0:00:29]} 43. Nd6 {[%clk 0:02:30]}  Rc1+ {[%clk 0:00:27]} 44. Kg2 {[%clk 0:02:31]}  Nf6 {[%clk 0:00:28]} 45. Rf4 {[%clk 0:02:24]}  Ke7 {[%clk 0:00:19]} 46. Rf3 {[%clk 0:02:23]}  Rc7 {[%clk 0:00:12]} 47. Rxf6 {[%clk 0:02:23]} 1-0


[Site "Internet"]

[Event "Chessable Masters - Torneo preliminare"]
[White "Aronian, Levon"]
[Black "Erigaisi, Arjun"]
[WhiteFideId "13300474"]
[BlackFideId "35009192"]
[WhiteElo "2720"]
[BlackElo "2685"]
[Result "1-0"]
[Round "7"]
[TimeControl "600+2"]
[Date "2023.03.13"]
[WhiteClock "0:02:42"]
[BlackClock "0:01:40"]

1. e4 {[%clk 0:10:01]}  c5 {[%clk 0:10:01]} 2. Nf3 {[%clk 0:10:02]}  e6 {[%clk 0:10:02]} 3. c3 {[%clk 0:10:03]}  d5 {[%clk 0:10:02]} 4. exd5 {[%clk 0:10:04]}  Qxd5 {[%clk 0:10:04]} 5. d4 {[%clk 0:10:04]}  Nf6 {[%clk 0:10:05]} 6. Na3 {[%clk 0:10:05]}  a6 {[%clk 0:10:03]} 7. Nc4 {[%clk 0:10:03]}  Nbd7 {[%clk 0:10:04]} 8. Be2 {[%clk 0:10:02]}  b5 {[%clk 0:09:50]} 9. Ne3 {[%clk 0:10:02]}  Qc6 {[%clk 0:09:49]} 10. a4 {[%clk 0:10:02]}  Bb7 {[%clk 0:09:34]} 11. axb5 {[%clk 0:09:53]}  axb5 {[%clk 0:09:36]} 12. Rxa8+ {[%clk 0:09:54]}  Bxa8 {[%clk 0:09:38]} 13. O-O {[%clk 0:09:42]}  Be7 {[%clk 0:09:13]} 14. Ne5 {[%clk 0:09:14]}  Nxe5 {[%clk 0:08:05]} 15. dxe5 {[%clk 0:09:16]}  Nd7 {[%clk 0:08:07]} 16. c4 {[%clk 0:09:16]}  Nxe5 {[%clk 0:07:20]} 17. cxb5 {[%clk 0:09:15]}  Qd7 {[%clk 0:07:21]} 18. Qxd7+ {[%clk 0:08:40]}  Kxd7 {[%clk 0:07:00]} 19. f4 {[%clk 0:08:38]}  Ng6 {[%clk 0:07:01]} 20. Nc4 {[%clk 0:08:02]}  Bf6 {[%clk 0:06:44]} 21. Be3 {[%clk 0:07:53]}  Bd4 {[%clk 0:06:38]} 22. Rd1 {[%clk 0:07:52]}  Rb8 {[%clk 0:05:46]} 23. Bxd4 {[%clk 0:07:49]}  cxd4 {[%clk 0:05:48]} 24. Rxd4+ {[%clk 0:07:50]}  Ke7 {[%clk 0:05:50]} 25. Ne3 {[%clk 0:07:37]}  Nf8 {[%clk 0:05:34]} 26. Kf2 {[%clk 0:07:19]}  Nd7 {[%clk 0:05:32]} 27. Ke1 {[%clk 0:07:20]}  Nc5 {[%clk 0:05:23]} 28. Bc4 {[%clk 0:06:54]}  Nb7 {[%clk 0:05:02]} 29. Nd1 {[%clk 0:06:34]}  Nd6 {[%clk 0:04:59]} 30. Bf1 {[%clk 0:06:35]}  Bb7 {[%clk 0:04:47]} 31. Nc3 {[%clk 0:06:34]}  Bc8 {[%clk 0:04:47]} 32. Kd2 {[%clk 0:06:20]}  Bd7 {[%clk 0:04:42]} 33. Rb4 {[%clk 0:06:21]}  Kd8 {[%clk 0:04:40]} 34. Kc2 {[%clk 0:05:31]}  Kc7 {[%clk 0:04:41]} 35. g4 {[%clk 0:05:23]}  h6 {[%clk 0:04:34]} 36. h4 {[%clk 0:05:20]}  g6 {[%clk 0:04:31]} 37. Bd3 {[%clk 0:04:50]}  Be8 {[%clk 0:04:12]} 38. g5 {[%clk 0:04:49]}  h5 {[%clk 0:04:11]} 39. Kd2 {[%clk 0:04:39]}  Ra8 {[%clk 0:03:33]} 40. Ke3 {[%clk 0:04:24]}  Nf5+ {[%clk 0:03:22]} 41. Bxf5 {[%clk 0:04:23]}  gxf5 {[%clk 0:03:24]} 42. b6+ {[%clk 0:03:49]}  Kb7 {[%clk 0:03:22]} 43. Ne2 {[%clk 0:03:48]}  Ra1 {[%clk 0:03:08]} 44. Nd4 {[%clk 0:03:32]}  Re1+ {[%clk 0:02:53]} 45. Kd2 {[%clk 0:03:33]}  Re4 {[%clk 0:02:42]} 46. Nc2 {[%clk 0:03:34]}  Rxb4 {[%clk 0:02:27]} 47. Nxb4 {[%clk 0:03:35]}  Kxb6 {[%clk 0:02:29]} 48. Nd3 {[%clk 0:03:12]}  Kc6 {[%clk 0:02:25]} 49. Ne5+ {[%clk 0:02:49]}  Kd5 {[%clk 0:02:26]} 50. Kd3 {[%clk 0:02:49]}  Kc5 {[%clk 0:02:13]} 51. Ke3 {[%clk 0:02:49]}  Kb4 {[%clk 0:01:56]} 52. Kd4 {[%clk 0:02:49]}  Kb3 {[%clk 0:01:57]} 53. Nc4 {[%clk 0:02:49]}  Bd7 {[%clk 0:01:42]} 54. Nd6 {[%clk 0:02:48]}  Kxb2 {[%clk 0:01:42]} 55. Nxf7 {[%clk 0:02:47]}  Kc2 {[%clk 0:01:39]} 56. g6 {[%clk 0:02:43]}  Be8 {[%clk 0:01:40]} 57. Ke5 {[%clk 0:02:42]}  Kd3 {[%clk 0:01:40]} 58. Kf6 {[%clk 0:02:42]} 1-0


[Site "Internet"]

[Event "Chessable Masters - Torneo preliminare"]
[White "Sevian, Samuel"]
[Black "Praggnanandhaa, R"]
[WhiteFideId "2040506"]
[BlackFideId "25059530"]
[WhiteElo "2582"]
[BlackElo "2587"]
[Result "1/2-1/2"]
[Round "7"]
[TimeControl "600+2"]
[Date "2023.03.13"]
[WhiteClock "0:04:51"]
[BlackClock "0:06:15"]

1. e4 {[%clk 0:08:59]}  e5 {[%clk 0:09:56]} 2. Nf3 {[%clk 0:09:00]}  Nc6 {[%clk 0:09:57]} 3. Bb5 {[%clk 0:09:01]}  a6 {[%clk 0:09:59]} 4. Ba4 {[%clk 0:09:02]}  Bc5 {[%clk 0:10:00]} 5. O-O {[%clk 0:08:57]}  d6 {[%clk 0:09:52]} 6. c3 {[%clk 0:08:55]}  Bd7 {[%clk 0:09:51]} 7. d4 {[%clk 0:08:53]}  Ba7 {[%clk 0:09:52]} 8. Re1 {[%clk 0:08:09]}  Nge7 {[%clk 0:09:50]} 9. Be3 {[%clk 0:07:39]}  O-O {[%clk 0:09:45]} 10. Nbd2 {[%clk 0:07:36]}  f6 {[%clk 0:09:40]} 11. h3 {[%clk 0:07:32]}  Kh8 {[%clk 0:09:40]} 12. Nf1 {[%clk 0:07:11]}  Be8 {[%clk 0:09:07]} 13. Ng3 {[%clk 0:07:06]}  exd4 {[%clk 0:09:03]} 14. Nxd4 {[%clk 0:06:08]}  Nxd4 {[%clk 0:08:58]} 15. Bxd4 {[%clk 0:06:07]}  Bxa4 {[%clk 0:08:44]} 16. Qxa4 {[%clk 0:06:09]}  Qe8 {[%clk 0:08:22]} 17. Qxe8 {[%clk 0:05:26]}  Rfxe8 {[%clk 0:08:22]} 18. Rad1 {[%clk 0:05:28]}  Kg8 {[%clk 0:08:20]} 19. f3 {[%clk 0:05:24]}  Kf7 {[%clk 0:08:12]} 20. Ne2 {[%clk 0:05:16]}  a5 {[%clk 0:06:44]} 21. a4 {[%clk 0:05:08]}  Nc6 {[%clk 0:06:40]} 22. Bxa7 {[%clk 0:05:07]}  Rxa7 {[%clk 0:06:41]} 23. Nf4 {[%clk 0:05:08]}  Rb8 {[%clk 0:06:36]} 24. c4 {[%clk 0:04:51]}  b6 {[%clk 0:06:15]} 1/2-1/2


[Site "Internet"]

[Event "Chessable Masters - Torneo preliminare"]
[White "Wei, Yi"]
[Black "Artemiev, Vladislav"]
[WhiteFideId "8603405"]
[BlackFideId "24101605"]
[WhiteElo "2716"]
[BlackElo "2735"]
[Result "0-1"]
[Round "7"]
[TimeControl "600+2"]
[Date "2023.03.13"]
[WhiteClock "0:00:02"]
[BlackClock "0:00:05"]

1. e4 {[%clk 0:09:39]}  e5 {[%clk 0:09:59]} 2. Nf3 {[%clk 0:09:40]}  Nc6 {[%clk 0:10:00]} 3. Bb5 {[%clk 0:09:42]}  Nf6 {[%clk 0:09:56]} 4. O-O {[%clk 0:09:29]}  Nxe4 {[%clk 0:09:57]} 5. Re1 {[%clk 0:09:31]}  Nd6 {[%clk 0:09:57]} 6. a4 {[%clk 0:09:32]}  Be7 {[%clk 0:09:44]} 7. Nc3 {[%clk 0:09:28]}  a6 {[%clk 0:09:36]} 8. Bf1 {[%clk 0:09:27]}  e4 {[%clk 0:09:36]} 9. Nxe4 {[%clk 0:09:28]}  Nxe4 {[%clk 0:09:38]} 10. Rxe4 {[%clk 0:09:29]}  d5 {[%clk 0:09:39]} 11. Re1 {[%clk 0:09:29]}  Bg4 {[%clk 0:09:39]} 12. h3 {[%clk 0:09:27]}  Bh5 {[%clk 0:09:39]} 13. Be2 {[%clk 0:09:03]}  O-O {[%clk 0:09:37]} 14. d4 {[%clk 0:09:03]}  Re8 {[%clk 0:09:09]} 15. Ne5 {[%clk 0:09:02]}  Bxe2 {[%clk 0:09:08]} 16. Rxe2 {[%clk 0:09:03]}  Qd6 {[%clk 0:08:00]} 17. Bf4 {[%clk 0:06:55]}  Nxe5 {[%clk 0:07:30]} 18. Bxe5 {[%clk 0:06:16]}  Qd7 {[%clk 0:07:28]} 19. Qd3 {[%clk 0:05:32]}  Bf8 {[%clk 0:07:04]} 20. b3 {[%clk 0:04:01]}  f6 {[%clk 0:07:03]} 21. Bf4 {[%clk 0:03:57]}  Rxe2 {[%clk 0:07:04]} 22. Qxe2 {[%clk 0:03:58]}  Re8 {[%clk 0:07:06]} 23. Qd2 {[%clk 0:03:59]}  c6 {[%clk 0:05:07]} 24. Re1 {[%clk 0:03:38]}  Rxe1+ {[%clk 0:05:07]} 25. Qxe1 {[%clk 0:03:40]}  Qf5 {[%clk 0:05:09]} 26. Bc7 {[%clk 0:03:05]}  Kf7 {[%clk 0:04:56]} 27. Qa5 {[%clk 0:02:43]}  Ke8 {[%clk 0:02:47]} 28. Qb6 {[%clk 0:02:12]}  Qc8 {[%clk 0:02:47]} 29. c4 {[%clk 0:02:05]}  Be7 {[%clk 0:02:21]} 30. Kh2 {[%clk 0:01:29]}  h5 {[%clk 0:01:22]} 31. h4 {[%clk 0:01:24]}  Kf7 {[%clk 0:00:47]} 32. f3 {[%clk 0:01:22]}  Ke8 {[%clk 0:00:15]} 33. Bg3 {[%clk 0:01:00]}  Kf7 {[%clk 0:00:12]} 34. Kg1 {[%clk 0:00:34]}  Bd8 {[%clk 0:00:09]} 35. Qb4 {[%clk 0:00:34]}  Qd7 {[%clk 0:00:05]} 36. Qc3 {[%clk 0:00:11]}  f5 {[%clk 0:00:06]} 37. Bf2 {[%clk 0:00:05]}  dxc4 {[%clk 0:00:07]} 38. bxc4 {[%clk 0:00:06]}  Bf6 {[%clk 0:00:08]} 39. Qd3 {[%clk 0:00:05]}  b5 {[%clk 0:00:07]} 40. axb5 {[%clk 0:00:06]}  axb5 {[%clk 0:00:08]} 41. cxb5 {[%clk 0:00:06]}  cxb5 {[%clk 0:00:09]} 42. Qb3+ {[%clk 0:00:05]}  Kg6 {[%clk 0:00:07]} 43. d5 {[%clk 0:00:06]}  Be7 {[%clk 0:00:07]} 44. Bd4 {[%clk 0:00:05]}  Bxh4 {[%clk 0:00:07]} 45. Bc5 {[%clk 0:00:06]}  Bg3 {[%clk 0:00:04]} 46. Bb4 {[%clk 0:00:03]}  Qa7+ {[%clk 0:00:04]} 47. Kh1 {[%clk 0:00:02]}  Qa1+ {[%clk 0:00:05]} 0-1


[Site "Internet"]